bitfinex-derivatives/quotes_BTCF0:USTF0_20230401
["timestamp","ask_amount","ask_price","bid_price","bid_amount"]
[1680343367886,0.13208516,28435.0,28434.0,0.06324308]
[1680343368381,0.43278516,28435.0,28434.0,0.06324308]
[1680343372399,0.38278516,28435.0,28434.0,0.06324308]
[1680343376804,0.08208516,28435.0,28434.0,0.06324308]
[1680343377001,0.68348516,28435.0,28434.0,0.06324308]
[1680343378099,0.38278516,28435.0,28434.0,0.06324308]
[1680343382701,0.08208516,28435.0,28434.0,0.06324308]
[1680343382897,0.38278516,28435.0,28434.0,0.06324308]
[1680343383409,0.08208516,28435.0,28434.0,0.06324308]
[1680343383608,0.38278516,28435.0,28434.0,0.06324308]
[1680343384611,0.43278516,28435.0,28434.0,0.06324308]
[1680343386005,0.13208516,28435.0,28434.0,0.06324308]
[1680343386202,0.73348516,28435.0,28434.0,0.06324308]
[1680343389709,0.73348516,28435.0,28433.0,0.06324308]
[1680343389905,0.1203,28434.0,28433.0,0.06324308]
[1680343390919,0.1253,28434.0,28432.0,0.15464138]
[1680343391118,0.1198,28433.0,28432.0,0.15464138]
[1680343392513,0.4205,28433.0,28432.0,0.15464138]
[1680343393921,0.1198,28433.0,28432.0,0.15464138]
[1680343394109,0.4205,28433.0,28432.0,0.15464138]
[1680343398623,0.1198,28433.0,28432.0,0.15464138]
[1680343398917,0.4205,28433.0,28432.0,0.15464138]
[1680343399122,0.1198,28433.0,28432.0,0.15464138]
[1680343399421,0.4205,28433.0,28432.0,0.15464138]
[1680343399620,0.1198,28433.0,28432.0,0.15464138]
[1680343400119,0.4205,28433.0,28432.0,0.15464138]
[1680343403628,0.4205,28433.0,28432.0,0.15457569]
[1680343403926,0.1198,28433.0,28432.0,0.15457569]
[1680343404221,0.4205,28433.0,28432.0,0.15457569]
[1680343404924,0.1198,28433.0,28432.0,0.15457569]
[1680343405128,0.4205,28433.0,28432.0,0.15457569]
[1680343408222,0.3705,28433.0,28432.0,0.15457569]
[1680343409520,0.0698,28433.0,28432.0,0.15457569]
[1680343409927,0.3705,28433.0,28432.0,0.15457569]
[1680343415830,0.371,28433.0,28432.0,0.15447569]
[1680343416433,0.0703,28433.0,28432.0,0.15447569]
[1680343416633,0.371,28433.0,28432.0,0.15447569]
[1680343419037,0.0703,28433.0,28432.0,0.15447569]
[1680343419234,0.371,28433.0,28432.0,0.15447569]
[1680343419433,0.0703,28433.0,28432.0,0.15447569]
[1680343419628,0.371,28433.0,28432.0,0.15447569]
[1680343420036,0.0703,28433.0,28432.0,0.15447569]
[1680343420235,0.371,28433.0,28432.0,0.15447569]
[1680343426939,0.3705,28433.0,28432.0,0.15457569]
[1680343427541,0.0698,28433.0,28432.0,0.15457569]
[1680343427838,0.3705,28433.0,28432.0,0.15457569]
[1680343430645,0.0698,28433.0,28432.0,0.15457569]
[1680343430946,0.3705,28433.0,28432.0,0.15457569]
[1680343434940,0.0698,28433.0,28432.0,0.15457569]
[1680343435243,0.3705,28433.0,28432.0,0.15457569]
[1680343436041,0.0698,28433.0,28432.0,0.15457569]
[1680343436242,0.3705,28433.0,28432.0,0.15457569]
[1680343437142,0.371,28433.0,28432.0,0.08427569]
[1680343437442,0.0703,28433.0,28432.0,0.08427569]
[1680343437741,0.371,28433.0,28432.0,0.08427569]
[1680343447847,0.421,28433.0,28431.0,0.15447569]
[1680343448046,0.1203,28432.0,28431.0,0.15447569]
[1680343449650,0.421,28432.0,28431.0,0.15447569]
[1680343449845,0.1203,28432.0,28431.0,0.15447569]
[1680343450052,0.422,28432.0,28431.0,0.15547569]
[1680343452554,0.1213,28432.0,28431.0,0.15547569]
[1680343452854,0.422,28432.0,28431.0,0.15547569]
[1680343455256,0.422,28432.0,28431.0,0.0712]
[1680343455954,0.422,28432.0,28431.0,0.0710379]
[1680343457056,0.422,28432.0,28431.0,0.001]
[1680343457257,0.422,28432.0,28431.0,0.0642697]
[1680343458058,0.1213,28432.0,28431.0,0.0642697]
[1680343458259,0.422,28432.0,28431.0,0.0642697]
[1680343458663,0.4918,28432.0,28431.0,0.001]
[1680343460353,0.7925,28432.0,28431.0,0.001]
[1680343463451,0.1911,28432.0,28431.0,0.001]
[1680343463655,0.7925,28432.0,28431.0,0.001]
[1680343464058,0.9333,28432.0,28431.0,0.001]
[1680343477064,0.3319,28432.0,28431.0,0.001]
[1680343477262,0.9333,28432.0,28431.0,0.001]
[1680343480468,0.3319,28432.0,28431.0,0.001]
[1680343480869,0.9333,28432.0,28431.0,0.001]
[1680343481470,0.9333,28432.0,28426.0,0.11566444]
[1680343481666,0.6717,28427.0,28426.0,0.0632697]
[1680343482667,0.6747,28427.0,28426.0,0.0632697]
[1680343484066,0.0733,28427.0,28426.0,0.0632697]
[1680343484272,0.6747,28427.0,28426.0,0.0632697]
[1680343486575,0.374,28427.0,28426.0,0.0632697]
[1680343492073,0.373,28427.0,28426.0,0.0632697]
[1680343495082,0.372,28427.0,28426.0,0.0632697]
[1680343495974,0.422,28427.0,28426.0,0.0632697]
[1680343498376,0.492,28427.0,28425.0,0.0632697]
[1680343498578,0.1906,28426.0,28425.0,0.0632697]
[1680343499280,0.1906,28426.0,28424.0,0.08427569]
[1680343499482,0.1203,28425.0,28424.0,0.08427569]
[1680343502184,0.1223,28425.0,28424.0,0.08427569]
[1680343505983,0.0723,28425.0,28424.0,0.08427569]
[1680343506185,0.0723,28425.0,28424.0,0.0858377]
[1680343507088,0.1223,28425.0,28424.0,0.0858377]
[1680343511507,0.1223,28425.0,28424.0,0.00156201]
[1680343511805,0.1223,28425.0,28423.0,0.08427569]
[1680343512004,0.421,28424.0,28423.0,0.08427569]
[1680343513100,0.424,28424.0,28423.0,0.08427569]
[1680343520202,0.374,28424.0,28423.0,0.08427569]
[1680343521001,0.374,28424.0,28423.0,0.08575099]
[1680343522110,0.374,28424.0,28423.0,0.0014753]
[1680343522311,0.374,28424.0,28422.0,0.15457569]
[1680343522506,0.0703,28423.0,28422.0,0.15457569]
[1680343522704,0.1203,28423.0,28422.0,0.15457569]
[1680343522903,0.1203,28423.0,28422.0,0.15461809]
[1680343523099,0.1203,28423.0,28422.0,0.15461847]
[1680343523306,0.1203,28423.0,28422.0,0.0703]
[1680343523611,0.1203,28423.0,28422.0,0.0843217]
[1680343523809,0.1233,28423.0,28422.0,0.0843217]
[1680343525009,0.424,28423.0,28422.0,0.0843217]
[1680343526913,0.4941,28423.0,28422.0,0.0843217]
[1680343527605,0.4941,28423.0,28422.0,0.06324736]
[1680343529010,0.4931,28423.0,28422.0,0.06324736]
[1680343529713,0.4931,28423.0,28421.0,0.06324736]
[1680343529909,0.0703,28422.0,28421.0,0.06324736]
[1680343530109,0.1406,28422.0,28421.0,0.06324736]
[1680343530312,0.1906,28422.0,28421.0,0.06324736]
[1680343530811,0.1406,28421.0,28420.0,0.06324736]
[1680343531011,0.6317,28421.0,28419.0,0.0843217]
[1680343531211,0.1406,28420.0,28419.0,0.0843217]
[1680343531417,0.1906,28420.0,28419.0,0.0843217]
[1680343531812,0.1906,28420.0,28418.0,0.0843217]
[1680343532014,0.1203,28419.0,28418.0,0.0843217]
[1680343532716,0.1203,28419.0,28417.0,0.0843217]
[1680343532917,0.05,28419.0,28418.0,0.0843217]
[1680343533220,0.1203,28419.0,28417.0,0.0843217]
[1680343533417,0.0703,28418.0,28417.0,0.0843217]
[1680343533624,0.0703,28418.0,28416.0,0.10541842]
[1680343533917,0.421,28417.0,28416.0,0.10541842]
[1680343534518,0.421,28417.0,28415.0,0.0703]
[1680343534519,0.421,28417.0,28415.0,0.17571842]
[1680343534817,0.1196,28416.0,28415.0,0.17571842]
[1680343535420,0.1196,28416.0,28415.0,0.17551021]
[1680343535917,0.1196,28416.0,28415.0,0.07009179]
[1680343536119,0.1226,28416.0,28415.0,0.07182845]
[1680343536920,0.1233,28416.0,28415.0,0.08598369]
[1680343537420,0.05,28415.0,28413.0,0.0631892]
[1680343537722,0.3703,28414.0,28413.0,0.0631892]
[1680343537921,0.4203,28414.0,28413.0,0.0631892]
[1680343538523,0.4203,28414.0,28412.0,0.0631892]
[1680343538717,0.1203,28413.0,28412.0,0.0631892]
[1680343539116,0.1203,28413.0,28412.0,0.06483391]
[1680343539524,0.0703,28413.0,28412.0,0.06483391]
[1680343540123,0.0733,28413.0,28412.0,0.06483391]
[1680343540721,0.0733,28413.0,28412.0,0.00164471]
[1680343543026,0.0733,28413.0,28410.0,0.0697]
[1680343543222,0.0697,28411.0,28410.0,0.0697]
[1680343545125,0.0727,28411.0,28410.0,0.07134472]
[1680343547030,0.003,28411.0,28410.0,0.07184472]
[1680343548829,0.1196,28413.0,28410.0,0.07184472]
[1680343549133,0.003,28411.0,28410.0,0.00164472]
[1680343549332,0.003,28411.0,28410.0,0.07184472]
[1680343551130,0.1226,28413.0,28410.0,0.07184472]
[1680343551328,0.0726,28413.0,28412.0,0.0701]
[1680343551532,0.0696,28413.0,28412.0,0.07181928]
[1680343552125,0.0726,28413.0,28412.0,0.07181928]
[1680343552427,0.1226,28413.0,28412.0,0.07181928]
[1680343552828,0.0726,28413.0,28412.0,0.07181928]
[1680343554235,0.3733,28413.0,28412.0,0.07181928]
[1680343557037,0.374,28413.0,28412.0,0.07181928]
[1680343567046,0.374,28413.0,28412.0,0.00171928]
[1680343567242,0.373,28413.0,28412.0,0.00171928]
[1680343567446,0.373,28413.0,28410.0,0.0703]
[1680343567740,0.0703,28411.0,28410.0,0.0703]
[1680343568544,0.0733,28411.0,28410.0,0.0703]
[1680343573252,0.374,28411.0,28410.0,0.0703]
[1680343574053,0.0733,28411.0,28410.0,0.0703]
[1680343574249,0.374,28411.0,28410.0,0.0703]
[1680343576953,0.0733,28411.0,28409.0,0.15454703]
[1680343577146,0.0703,28410.0,28409.0,0.15454703]
[1680343577351,0.1203,28410.0,28409.0,0.15454703]
[1680343578651,0.1233,28410.0,28409.0,0.15454703]
[1680343580549,0.1233,28410.0,28409.0,0.0703]
[1680343581252,0.1233,28410.0,28409.0,0.07201623]
[1680343582653,0.1233,28410.0,28409.0,0.17743465]
[1680343586651,0.0733,28410.0,28409.0,0.17743465]
[1680343586851,0.1233,28410.0,28409.0,0.07201623]
[1680343587053,0.0733,28410.0,28409.0,0.17693465]
[1680343591562,0.003,28410.0,28409.0,0.17725242]
[1680343591761,0.003,28410.0,28409.0,0.22725242]
[1680343592161,0.003,28410.0,28409.0,0.17725242]
[1680343592559,0.003,28410.0,28409.0,0.22725242]
[1680343593062,0.00290072,28410.0,28409.0,0.22725242]
[1680343593362,0.00269199,28410.0,28409.0,0.22725242]
[1680343593861,0.00269199,28410.0,28409.0,0.17725242]
[1680343594655,0.00257699,28410.0,28409.0,0.121834]
[1680343595167,0.00248206,28410.0,28409.0,0.071834]
[1680343601167,0.00236568,28410.0,28409.0,0.071834]
[1680343606770,0.00236568,28410.0,28409.0,0.121834]
[1680343610475,0.0022691,28410.0,28409.0,0.121834]
[1680343610665,0.00216573,28410.0,28409.0,0.121834]
[1680343610976,0.00206988,28410.0,28409.0,0.121834]
[1680343611175,0.00197359,28410.0,28409.0,0.121834]
[1680343611568,0.00179322,28410.0,28409.0,0.121834]
[1680343612070,0.00169754,28410.0,28409.0,0.121834]
[1680343612276,0.00160261,28410.0,28409.0,0.121834]
[1680343612474,0.00150993,28410.0,28409.0,0.121834]
[1680343612672,0.00140121,28410.0,28409.0,0.121834]
[1680343612875,0.00130824,28410.0,28409.0,0.121834]
[1680343613275,0.0012171,28410.0,28409.0,0.121834]
[1680343613477,0.0012171,28410.0,28409.0,0.1203]
[1680343616984,0.371,28414.0,28410.0,0.05]
[1680343617182,0.0004,28416.0,28412.0,0.3851284]
[1680343617382,0.0704,28421.0,28415.0,0.5253284]
[1680343617691,0.0704,28421.0,28419.0,0.1334103]
[1680343617880,0.0704,28421.0,28420.0,0.0633103]
[1680343618376,0.0704,28421.0,28419.0,0.0701]
[1680343618979,0.0974,28421.0,28419.0,0.0701]
[1680343621781,0.027,28421.0,28420.0,0.1207]
[1680343623884,0.3007,28428.0,28421.0,0.05]
[1680343624083,0.3007,28428.0,28427.0,0.0703]
[1680343625884,0.3017,28428.0,28427.0,0.0813]
[1680343626684,0.3007,28428.0,28427.0,0.0703]
[1680343626885,0.3017,28428.0,28427.0,0.0873]
[1680343631987,0.001,28428.0,28427.0,0.0873]
[1680343632293,0.0713,28428.0,28427.0,0.017]
[1680343637104,0.001,28428.0,28427.0,0.0871]
[1680343646113,0.051,28428.0,28427.0,0.0871]
[1680343646414,0.001,28428.0,28427.0,0.0871]
[1680343647014,0.0713,28428.0,28427.0,0.0873]
[1680343647415,0.1213,28428.0,28427.0,0.0873]
[1680343647612,0.0713,28428.0,28427.0,0.0873]
[1680343648813,0.1213,28428.0,28427.0,0.0873]
[1680343651319,0.0713,28428.0,28427.0,0.0873]
[1680343652220,0.1213,28428.0,28427.0,0.0873]
[1680343652421,0.1213,28428.0,28427.0,0.0703]
[1680343652422,0.1203,28428.0,28427.0,0.0703]
[1680343652619,0.1213,28428.0,28427.0,0.0813]
[1680343652925,0.1213,28428.0,28427.0,0.0873]
[1680343653125,0.372,28428.0,28427.0,0.0873]
[1680343659322,0.0713,28428.0,28427.0,0.0873]
[1680343659520,0.372,28428.0,28427.0,0.0873]
[1680343660325,0.0713,28428.0,28427.0,0.0873]
[1680343660519,0.372,28428.0,28427.0,0.0873]
[1680343667031,0.3017,28428.0,28427.0,0.0873]
[1680343669724,0.001,28428.0,28427.0,0.0873]
[1680343673629,0.001,28428.0,28427.0,0.15048677]
[1680343674433,0.371,28433.0,28428.0,0.05]
[1680343674634,0.371,28433.0,28431.0,0.0701]
[1680343675035,0.1962021,28435.0,28432.0,0.0702]
[1680343675236,0.0697,28435.0,28434.0,0.0702]
[1680343676031,0.0777,28435.0,28434.0,0.0702]
[1680343676432,0.0777,28435.0,28434.0,0.0722]
[1680343677029,0.008,28435.0,28434.0,0.0723]
[1680343678538,0.008,28435.0,28434.0,0.0713]
[1680343679240,0.1276,28435.0,28434.0,0.001]
[1680343680637,0.05,28434.0,28431.0,0.0703]
[1680343680941,0.371,28432.0,28431.0,0.0703]
[1680343681944,0.372,28432.0,28431.0,0.0813]
[1680343685042,0.0713,28432.0,28431.0,0.0813]
[1680343690846,0.372,28432.0,28431.0,0.0813]
[1680343693646,0.0713,28432.0,28431.0,0.0813]
[1680343695646,0.0713,28432.0,28431.0,0.0812]
[1680343695647,0.001,28432.0,28431.0,0.0812]
[1680343716954,0.001,28432.0,28431.0,0.2015]
[1680343717155,0.001,28432.0,28431.0,0.1515]
[1680343720470,0.001,28432.0,28431.0,0.2015]
[1680343721171,0.001,28432.0,28431.0,0.1515]
[1680343722371,0.001,28432.0,28431.0,0.21468677]
[1680343723070,0.001,28432.0,28431.0,0.51538677]
[1680343725868,0.3007,28436.0,28432.0,0.05]
[1680343726068,0.3007,28436.0,28435.0,0.0701]
[1680343726272,0.4975021,28439.0,28435.0,0.0701]
[1680343726473,0.4975021,28439.0,28437.0,0.0702]
[1680343727772,0.5065021,28439.0,28437.0,0.0722]
[1680343729674,0.2058021,28439.0,28437.0,0.0722]
[1680343729874,0.5065021,28439.0,28437.0,0.0722]
[1680343730575,0.38,28439.0,28437.0,0.0722]
[1680343737081,0.0703,28438.0,28437.0,0.0722]
[1680343737278,0.1203,28438.0,28437.0,0.0722]
[1680343737581,0.0703,28438.0,28437.0,0.0722]
[1680343737982,0.1203,28438.0,28437.0,0.0722]
[1680343738183,0.0703,28438.0,28437.0,0.0722]
[1680343738382,0.3097,28439.0,28437.0,0.0721]
[1680343738583,0.3097,28439.0,28438.0,0.0703]
[1680343739094,0.3007,28439.0,28438.0,0.0703]
[1680343740876,0.3097,28439.0,28438.0,0.0723]
[1680343743583,0.009,28439.0,28438.0,0.0723]
[1680343746088,0.3097,28439.0,28438.0,0.0723]
[1680343752697,0.009,28439.0,28438.0,0.0723]
[1680343752886,0.3097,28439.0,28438.0,0.0723]
[1680343758100,0.009,28439.0,28438.0,0.0723]
[1680343758492,0.3097,28439.0,28438.0,0.0723]
[1680343762801,0.009,28439.0,28438.0,0.0723]
[1680343763002,0.3097,28439.0,28438.0,0.0723]
[1680343767002,0.3097,28439.0,28438.0,0.0718]
[1680343770509,0.009,28439.0,28438.0,0.0718]
[1680343770814,0.3097,28439.0,28438.0,0.0718]
[1680343774014,0.009,28439.0,28438.0,0.0718]
[1680343780221,0.3097,28439.0,28438.0,0.0718]
[1680343784132,0.009,28439.0,28438.0,0.0718]
[1680343784324,0.3097,28439.0,28438.0,0.0718]
[1680343785825,0.009,28439.0,28438.0,0.0718]
[1680343786030,0.3097,28439.0,28438.0,0.0718]
[1680343789634,0.3097,28439.0,28438.0,0.00189866]
[1680343789635,0.38,28439.0,28438.0,0.00189866]
[1680343789837,0.43,28439.0,28438.0,0.00189866]
[1680343790030,0.429,28439.0,28438.0,0.002]
[1680343793736,0.7297,28439.0,28438.0,0.002]
[1680343797044,0.1283,28439.0,28438.0,0.002]
[1680343797334,0.7297,28439.0,28438.0,0.002]
[1680343806351,0.6797,28439.0,28438.0,0.002]
[1680343809549,0.0783,28439.0,28438.0,0.002]
[1680343809945,0.379,28439.0,28438.0,0.002]
[1680343812354,0.6797,28439.0,28438.0,0.002]
[1680343817061,0.6797,28439.0,28438.0,0.0722]
[1680343820153,0.7496,28439.0,28434.0,0.1335632]
[1680343820460,0.371,28435.0,28434.0,0.1335632]
[1680343820665,0.371,28435.0,28434.0,0.0703]
[1680343820861,0.371,28435.0,28434.0,0.1335632]
[1680343821260,0.371,28435.0,28434.0,0.0703]
[1680343822257,0.371,28435.0,28434.0,0.1355632]
[1680343822659,0.373,28435.0,28434.0,0.1335632]
[1680343823263,0.373,28435.0,28434.0,0.0703]
[1680343825963,0.0723,28435.0,28434.0,0.0703]
[1680343826362,0.6737,28435.0,28434.0,0.0703]
[1680343826961,0.6737,28435.0,28433.0,0.0703]
[1680343827169,0.1203,28434.0,28433.0,0.0703]
[1680343827558,0.7217,28434.0,28433.0,0.0703]
[1680343828270,0.7217,28434.0,28433.0,0.0743]
[1680343836576,0.1203,28434.0,28433.0,0.0743]
[1680343836773,0.7217,28434.0,28433.0,0.0743]
[1680343836977,0.7211,28434.0,28433.0,0.004]
[1680343840478,0.6014,28434.0,28433.0,0.0743]
[1680343842476,0.3007,28434.0,28433.0,0.0743]
[1680343843776,0.0696,28435.0,28433.0,0.0743]
[1680343843972,0.3007,28434.0,28433.0,0.004]
[1680343844277,0.3007,28434.0,28433.0,0.0742]
[1680343845377,0.1203,28439.0,28434.0,0.05]
[1680343845577,0.1203,28439.0,28438.0,0.0701]
[1680343845876,0.0703,28439.0,28438.0,0.0701]
[1680343846674,0.1203,28439.0,28438.0,0.0701]
[1680343846875,0.1303,28439.0,28438.0,0.0721]
[1680343848580,0.1303,28439.0,28438.0,0.0711]
[1680343853683,0.0803,28439.0,28438.0,0.0711]
[1680343853871,0.1303,28439.0,28438.0,0.0711]
[1680343856778,0.0803,28439.0,28438.0,0.0711]
[1680343857082,0.0803,28439.0,28438.0,0.001]
[1680343857479,0.1303,28439.0,28438.0,0.001]
[1680343862083,0.431,28439.0,28438.0,0.001]
[1680343864688,0.1303,28439.0,28438.0,0.001]
[1680343867187,0.05,28438.0,28434.0,0.0703]
[1680343867385,0.371,28436.0,28434.0,0.0703]
[1680343867586,0.05,28435.0,28434.0,0.0703]
[1680343868489,0.05,28435.0,28434.0,0.0713]
[1680343868989,0.051,28435.0,28434.0,0.0813]
[1680343870588,0.001,28435.0,28434.0,0.0813]
[1680343870785,0.051,28435.0,28434.0,0.0813]
[1680343874386,0.422,28435.0,28430.0,0.14767693]
[1680343874582,0.0703,28431.0,28430.0,0.0632632]
[1680343874979,0.1203,28431.0,28430.0,0.0632632]
[1680343875381,0.1203,28431.0,28430.0,0.0732632]
[1680343877294,0.1223,28431.0,28430.0,0.0792632]
[1680343878688,0.0723,28431.0,28430.0,0.0792632]
[1680343881295,0.0723,28431.0,28430.0,0.016]
[1680343887889,0.016,28430.0,28426.0,0.0697]
[1680343888085,0.371,28427.0,28424.0,0.08441373]
[1680343888292,0.0703,28425.0,28423.0,0.15451373]
[1680343888487,0.0703,28424.0,28423.0,0.15451373]
[1680343888994,0.371,28424.0,28423.0,0.0701]
[1680343889392,0.374,28424.0,28423.0,0.0701]
[1680343890093,0.0733,28424.0,28423.0,0.0701]
[1680343890294,0.374,28424.0,28423.0,0.0701]
[1680343890697,0.374,28424.0,28421.0,0.08441373]
[1680343890896,0.0703,28422.0,28421.0,0.08441373]
[1680343891099,0.0703,28422.0,28420.0,0.15471373]
[1680343891295,0.05,28421.0,28420.0,0.15471373]
[1680343891699,0.05,28421.0,28420.0,0.0703]
[1680343893898,0.0733,28422.0,28420.0,0.0703]
[1680343894105,0.002,28421.0,28420.0,0.0703]
[1680343894307,0.052,28421.0,28420.0,0.0703]
[1680343897108,0.1216,28421.0,28420.0,0.0703]
[1680343897605,0.4223,28421.0,28420.0,0.0703]
[1680343898199,0.1216,28421.0,28420.0,0.0703]
[1680343898609,0.4223,28421.0,28420.0,0.0703]
[1680343903108,0.423,28421.0,28417.0,0.0698]
[1680343903305,0.3007,28418.0,28417.0,0.0698]
[1680343904304,0.3037,28418.0,28417.0,0.0698]
[1680343904704,0.003,28418.0,28417.0,0.0698]
[1680343905707,0.3537,28418.0,28417.0,0.0698]
[1680343907509,0.053,28418.0,28417.0,0.0698]
[1680343909407,0.052,28418.0,28417.0,0.0698]
[1680343909806,0.002,28418.0,28417.0,0.0698]
[1680343910116,0.052,28418.0,28417.0,0.0698]
[1680343911220,0.002,28418.0,28417.0,0.0698]
[1680343911409,0.052,28418.0,28417.0,0.0698]
[1680343913212,0.002,28418.0,28417.0,0.0698]
[1680343914711,0.052,28418.0,28417.0,0.0698]
[1680343914913,0.05,28418.0,28417.0,0.0698]
[1680343915209,0.056,28418.0,28417.0,0.0698]
[1680343915614,0.05,28417.0,28414.0,0.12358871]
[1680343915828,0.0703,28415.0,28414.0,0.0702]
[1680343916016,0.1203,28415.0,28414.0,0.0702]
[1680343916911,0.1203,28415.0,28413.0,0.0703]
[1680343917113,0.0703,28414.0,28413.0,0.0703]
[1680343917721,0.0703,28414.0,28410.0,0.12187003]
[1680343917722,0.0702,28414.0,28410.0,0.12187003]
[1680343917921,0.371,28411.0,28410.0,0.0703]
[1680343918910,0.374,28411.0,28410.0,0.0703]
[1680343920419,0.3037,28411.0,28410.0,0.0703]
[1680343924023,0.003,28411.0,28410.0,0.0703]
[1680343933232,0.0733,28411.0,28409.0,0.0703]
[1680343933432,0.0698,28410.0,28409.0,0.0703]
[1680343934431,0.0728,28410.0,28409.0,0.0703]
[1680343937033,0.0733,28410.0,28409.0,0.0702]
[1680343941237,0.0733,28410.0,28406.0,0.0703]
[1680343941541,0.0703,28407.0,28406.0,0.0703]
[1680343942337,0.1203,28407.0,28406.0,0.0703]
[1680343942535,0.1233,28407.0,28406.0,0.0703]
[1680343944532,0.0733,28407.0,28406.0,0.0703]
[1680343944935,0.1233,28407.0,28406.0,0.0703]
[1680343946334,0.0733,28407.0,28406.0,0.0703]
[1680343948646,0.1233,28407.0,28406.0,0.0703]
[1680343948951,0.0733,28407.0,28406.0,0.0703]
[1680343949547,0.1233,28407.0,28406.0,0.0703]
[1680343949749,0.0733,28407.0,28406.0,0.0703]
[1680343951351,0.1233,28407.0,28406.0,0.0703]
[1680343952549,0.0733,28407.0,28406.0,0.0703]
[1680343953553,0.1233,28407.0,28406.0,0.0703]
[1680343955054,0.1233,28407.0,28406.0,0.0702]
[1680343955251,0.0733,28407.0,28406.0,0.0702]
[1680343956957,0.003,28407.0,28406.0,0.0703]
[1680343958950,0.053,28407.0,28406.0,0.0703]
[1680343962151,0.1226,28407.0,28405.0,0.3007]
[1680343962355,0.0697,28406.0,28405.0,0.3007]
[1680343964358,0.0697,28406.0,28404.0,0.08441373]
[1680343964563,0.0703,28405.0,28404.0,0.08441373]
[1680343965663,0.0733,28405.0,28404.0,0.08441373]
[1680343966158,0.0733,28405.0,28404.0,0.08434805]
[1680343966358,0.374,28405.0,28403.0,0.0697]
[1680343966663,0.0703,28404.0,28401.0,0.0702]
[1680343966865,0.0696,28402.0,28401.0,0.0702]
[1680343967055,0.0696,28402.0,28399.0,0.4759355]
[1680343967258,0.0698,28400.0,28399.0,0.42266491]
[1680343968566,0.0728,28400.0,28399.0,0.42266491]
[1680343969353,0.003,28400.0,28399.0,0.57870041]
[1680343969557,0.003,28400.0,28399.0,0.47316491]
[1680343969863,0.003,28400.0,28399.0,0.57870041]
[1680343970158,0.0703,28403.0,28399.0,0.57870041]
[1680343970364,0.0703,28403.0,28402.0,0.371]
[1680343971363,0.0733,28403.0,28402.0,0.371]
[1680343972573,0.0733,28403.0,28402.0,0.0703]
[1680343977176,0.0728,28403.0,28401.0,0.0703]
[1680343977476,0.1196,28402.0,28401.0,0.0703]
[1680343978167,0.4203,28402.0,28401.0,0.0703]
[1680343979277,0.1196,28402.0,28401.0,0.0703]
[1680343979469,0.1226,28402.0,28401.0,0.0703]
[1680343985875,0.0726,28402.0,28401.0,0.0703]
[1680343986978,0.003,28402.0,28401.0,0.371]
[1680343990373,0.003,28402.0,28401.0,0.4412]
[1680343990776,0.003,28402.0,28401.0,0.4912]
[1680343991176,0.003,28402.0,28401.0,0.4412]
[1680343991380,0.003,28402.0,28401.0,0.4912]
[1680343991775,0.003,28402.0,28401.0,0.4412]
[1680343991981,0.003,28402.0,28401.0,0.4912]
[1680343992282,0.003,28402.0,28401.0,0.4412]
[1680343995983,0.003,28402.0,28401.0,0.5255194]
[1680343996883,0.003,28402.0,28401.0,0.2248194]
[1680343997081,0.003,28402.0,28401.0,0.4553194]
[1680343997785,0.003,28402.0,28401.0,0.45533443]
[1680343999883,0.0733,28402.0,28401.0,0.45483443]
[1680344001385,0.0733,28402.0,28401.0,0.0698]
[1680344003885,0.0733,28402.0,28401.0,0.15413443]
[1680344006994,0.0727,28402.0,28401.0,0.08433443]
[1680344011394,0.371,28404.0,28401.0,0.05]
[1680344011595,0.7007,28410.0,28403.0,0.2105]
[1680344011798,0.7007,28410.0,28408.0,0.0702]
[1680344011996,0.7704,28410.0,28408.0,0.0702]
[1680344012397,0.3824,28410.0,28408.0,0.0702]
[1680344014095,0.1401,28409.0,28405.0,0.371]
[1680344014302,0.05,28408.0,28407.0,0.0702]
[1680344015402,0.1203,28409.0,28407.0,0.0702]
[1680344015603,0.1203,28409.0,28407.0,0.0722]
[1680344016396,0.001,28408.0,28407.0,0.0732]
[1680344016593,0.051,28408.0,28407.0,0.0732]
[1680344017102,0.1207,28408.0,28407.0,0.003]
[1680344017999,0.1197,28408.0,28407.0,0.003]
[1680344018400,0.1217,28408.0,28407.0,0.003]
[1680344021608,0.0717,28408.0,28407.0,0.003]
[1680344027109,0.0717,28408.0,28407.0,0.0727]
[1680344028810,0.002,28408.0,28407.0,0.0731]
[1680344031911,0.001,28408.0,28407.0,0.0731]
[1680344051242,0.0706,28408.0,28407.0,0.003]
[1680344051442,0.05,28407.0,28405.0,0.0703]
[1680344051741,0.371,28406.0,28405.0,0.0703]
[1680344052139,0.371,28406.0,28404.0,0.0702]
[1680344052444,0.1203,28405.0,28404.0,0.0702]
[1680344053447,0.1233,28405.0,28404.0,0.0702]
[1680344054946,0.423,28405.0,28404.0,0.0702]
[1680344055548,0.421,28405.0,28404.0,0.0702]
[1680344055748,0.423,28405.0,28404.0,0.0702]
[1680344057041,0.423,28405.0,28403.0,0.0697]
[1680344057241,0.1198,28404.0,28403.0,0.0697]
[1680344058044,0.1218,28404.0,28403.0,0.0697]
[1680344063253,0.0718,28404.0,28403.0,0.0697]
[1680344072452,0.002,28404.0,28403.0,0.1406]
[1680344086068,0.1223,28404.0,28403.0,0.0703]
[1680344087171,0.1223,28404.0,28403.0,0.0698]
[1680344087572,0.0723,28404.0,28403.0,0.0698]
[1680344087871,0.1223,28404.0,28403.0,0.0698]